fUSD/lending_fUSD_20250612
["ID","MTS","AMOUNT","RATE_DAILY","PERIOD"]
[365517101,1749735039672,-150.0,0.00016999,2]
[365517102,1749735039681,-150.0,0.00016999,2]
[365517104,1749735039691,-306.41126273,0.00016999,2]
[365517107,1749735039702,-500.0,0.00016999,2]
[365517108,1749735039711,-300.0,0.00016999,2]
[365517110,1749735039721,-500.0,0.00016999,2]
[365517112,1749735039731,-150.0,0.00016999,2]
[365517114,1749735039740,-500.0,0.00016999,2]
[365517117,1749735039750,-1585.0,0.00016999,2]
[365517119,1749735039759,-150.0,0.00016999,2]
[365517120,1749735039768,-500.0,0.00016999,2]
[365517122,1749735039778,-150.0,0.00016999,2]
[365517124,1749735039788,-12183.40882177,0.00017,3]
[365517126,1749735039797,-433691.31656498,0.00017,3]
[365517256,1749735041037,-2298.41752718,0.00016833,2]
[365517258,1749735041047,-3050.86245581,0.00017,3]
[365517260,1749735041057,-3742.7,0.00017,3]
[365517262,1749735041068,-89598.32267769,0.00017,3]
[365517264,1749735041078,-136265.49344883,0.00017,2]
[365517266,1749735041087,-92000.34168757,0.00017,2]
[365517268,1749735041097,-3052907.97115418,0.00017,2]
[365517293,1749735041320,-11800.2101255,0.00017,2]
[365517467,1749735043346,-256.57632,0.00016856,2]
[365517468,1749735043460,-352.407,0.00016856,2]
[365517480,1749735046335,-1689.43420718,0.00016856,2]
[365517481,1749735046345,-3659.24179282,0.00017,2]
[365517482,1749735046421,-42656.93821677,0.00017,2]
[365517485,1749735120894,2750.1,0.00013569,2]
[365517486,1749735121041,2750.1,0.00015833,2]
[365517487,1749735130752,900.0,0.00015078,2]
[365517488,1749735135918,227.11226006,0.00015487,2]
[365517489,1749735135961,438.88773994,0.00015487,2]
[365517490,1749735151719,3642.93,0.00015487,2]
[365517491,1749735151828,3642.93,0.00015491,2]
[365517492,1749735152086,2275.25226006,0.00015495,2]
[365517493,1749735152107,1367.67773994,0.00015495,2]
[365517494,1749735152352,3642.93,0.00015499,2]
[365517495,1749735152464,377.76396443,0.00015503,2]
[365517496,1749735152485,3265.16603557,0.00015503,2]
[365517497,1749735153156,1724.22622449,0.00015507,2]
[365517498,1749735153178,1918.70377551,0.00015507,2]
[365517499,1749735153367,3642.93,0.00015511,2]
[365517500,1749735153615,3642.93,0.00015515,2]
[365517501,1749735153795,795.43622449,0.00015519,2]
[365517502,1749735153818,2847.49377551,0.00015519,2]
[365517503,1749735153981,3642.93,0.00015523,2]
[365517504,1749735154155,3509.57622449,0.00015527,2]
[365517505,1749735154178,133.35377551,0.00015527,2]
[365517506,1749735154564,3642.93,0.00015532,2]
[365517507,1749735154785,3642.93,0.00015536,2]
[365517508,1749735154998,2580.78622449,0.0001554,2]
[365517509,1749735155020,1062.14377551,0.0001554,2]
[365517510,1749735155203,3642.93,0.00015544,2]
[365517511,1749735155642,210.68290712,0.00015548,2]
[365517512,1749735155664,3432.24709288,0.00015548,2]
[365517513,1749735155834,1862.67913161,0.00015552,2]
[365517514,1749735155855,1780.25086839,0.00015552,2]
[365517515,1749735156013,3642.93,0.00015556,2]
[365517516,1749735156197,3642.93,0.0001556,2]
[365517517,1749735156362,933.88913161,0.00015564,2]
[365517518,1749735156383,2709.04086839,0.00015564,2]
[365517519,1749735220596,1600.0,0.00015934,2]
[365517520,1749735261368,1500.0,0.00015487,2]
[365517522,1749735292607,4190.95913161,0.00015923,2]
[365517523,1749735292632,1098.17086839,0.00015923,2]
[365517524,1749735305000,250.0,0.00015879,2]
[365517525,1749735312207,321.0,0.00015373,2]
[365517526,1749735331531,200.0,0.00015856,2]
[365517527,1749735343752,3000.0,0.000159,2]
[365517528,1749735430918,150.0,0.0001561,7]
[365517540,1749735547369,153.684223,0.0001597,2]
[365517553,1749735593649,1000.0,0.00013699,2]
[365517554,1749735648373,3827.14490861,0.00015577,2]
[365517555,1749735648396,1826.03509139,0.00015577,2]
[365517556,1749735661639,156.45,0.00015575,2]
[365517557,1749735727429,1196.5,0.00015575,2]
[365517558,1749735732091,266.0,0.00015176,2]
[365517559,1749735732393,266.0,0.00015628,2]
[365517560,1749735790641,677.84914074,0.00014916,2]
[365517561,1749735790729,363.40227031,0.00015,2]
[365517562,1749735819042,1000.0,0.00015591,2]
[365517563,1749735833037,433.82345007,0.00015696,2]
[365517564,1749735942493,346.29,0.000233,120]
[365517565,1749735942921,346.29,0.000236,120]
[365517566,1749735943281,346.29,0.000239,120]
[365517567,1749735943677,346.29,0.000242,120]
[365517568,1749735944090,346.29,0.000245,120]
[365517569,1749735988969,1980.07,0.00015584,2]
[365517570,1749736001712,150.0,0.00015584,2]
[365517571,1749736012866,346.2896,0.000235,120]
[365517572,1749736028592,1683.87004749,0.00015577,2]
[365517573,1749736028628,1067.12995251,0.00015577,2]
[365517574,1749736066432,89300.57,0.0002459,120]
[365517575,1749736095126,260.0,0.00015081,2]
[365517576,1749736095499,260.0,0.00015535,2]
[365517577,1749736095705,260.0,0.00015989,3]
[365517578,1749736123240,8152.87004749,0.00015676,2]
[365517579,1749736123263,10000.0,0.00015676,2]
[365517580,1749736123285,5747.12995251,0.00015676,2]
[365517581,1749736123879,172.8,0.0001254,2]
[365517582,1749736136149,4252.87004749,0.00015675,2]
[365517583,1749736136172,774.41995251,0.00015675,2]
[365517584,1749736211881,202.0,0.00015081,2]
[365517586,1749736219290,937.03,0.00015845,2]
[365517587,1749736229532,1355.96,0.00015708,2]
[365517594,1749736232252,-250.0,0.00016061,2]
[365517595,1749736232262,-300.0,0.00016065,2]
[365517596,1749736232272,-152.32,0.00016138,2]
[365517597,1749736232282,-500.0,0.00016174,2]
[365517598,1749736232291,-700.0,0.00016174,2]
[365517599,1749736232300,-300.0,0.00016239,2]
[365517600,1749736232311,-1200.0,0.00016239,2]
[365517601,1749736232321,-300.0,0.00016239,2]
[365517602,1749736232330,-2396.801656,0.0001624,2]
[365517603,1749736232339,-2424.37834403,0.00016241,2]
[365517604,1749736232351,-672.089998,0.00016241,2]
[365517605,1749736232391,-2622.87665797,0.00016241,2]
[365517606,1749736232400,-1610.60381082,0.00016241,2]
[365517607,1749736232409,-151.0,0.00016262,2]
[365517608,1749736232418,-151.0,0.00016265,2]
[365517609,1749736232427,-151.0,0.00016269,2]
[365517610,1749736232436,-151.0,0.00016274,2]
[365517611,1749736232444,-165.46518053,0.00016281,2]
[365517612,1749736232452,-500.0,0.00016281,2]
[365517613,1749736232461,-500.0,0.00016281,2]
[365517614,1749736232470,-300.79472695,0.00016281,2]
[365517615,1749736232479,-618.36390429,0.00016281,2]
[365517616,1749736232488,-550.0,0.00016283,2]
[365517617,1749736232498,-1136.11252527,0.00016284,2]
[365517618,1749736232508,-151.0,0.00016284,2]
[365517620,1749736232517,-151.0,0.00016284,2]
[365517621,1749736232526,-151.0,0.00016284,2]
[365517622,1749736232535,-207.4,0.00016284,2]
[365517623,1749736232544,-1957.856,0.00016284,2]
[365517624,1749736232554,-153.03859382,0.00016284,2]
[365517625,1749736232563,-668.65185757,0.00016284,2]
[365517626,1749736232572,-500.0,0.00016284,2]
[365517628,1749736232582,-500.0,0.00016284,2]
[365517629,1749736232591,-500.0,0.00016284,2]
[365517630,1749736232601,-500.0,0.00016284,2]
[365517631,1749736232610,-500.0,0.00016284,2]
[365517632,1749736232619,-500.0,0.00016284,2]
[365517633,1749736232629,-500.0,0.00016284,2]
[365517634,1749736232638,-1068.50046134,0.00016299,2]
[365517635,1749736232647,-1000.0,0.000163,2]
[365517636,1749736232657,-500.0,0.00016329,2]
[365517637,1749736232666,-166.62,0.00016398,2]
[365517638,1749736232676,-260.0,0.00016442,3]
[365517639,1749736232685,-900.0,0.00016448,2]
[365517640,1749736232695,-378.83632777,0.00016476,2]
[365517641,1749736232704,-454.96,0.000165,2]
[365517642,1749736232713,-163.37,0.000165,2]
[365517643,1749736232723,-150.0,0.000165,2]
[365517644,1749736232732,-150.0,0.000166,2]
[365517645,1749736232742,-398.73,0.000166,2]
[365517646,1749736232751,-782.63,0.000166,2]
[365517647,1749736232760,-150.0,0.000166,2]
[365517648,1749736232770,-851.53,0.000166,2]
[365517649,1749736232779,-150.28,0.000166,2]
[365517650,1749736232788,-912.95624121,0.00016634,2]
[365517651,1749736232801,-87.04375879,0.00016634,2]
[365517652,1749736232811,-244.10475489,0.0001664,2]
[365517653,1749736232860,-253.5,0.0001664,2]
[365517672,1749736238286,-502.39524511,0.0001664,2]
[365517673,1749736238296,-516.33269285,0.00016657,2]
[365517690,1749736239662,-483.66730715,0.00016657,2]
[365517692,1749736239671,-451.96957002,0.0001666,2]
[365517694,1749736239681,-309.36512473,0.00016687,2]
[365517696,1749736239690,-1000.0,0.00016698,2]
[365517698,1749736239700,-1000.0,0.00016707,2]
[365517700,1749736239710,-90.61960782,0.00016709,2]
[365517702,1749736239721,-457.41082216,0.00016709,2]
[365517704,1749736239731,-186.92,0.00016712,2]
[365517706,1749736239740,-1000.0,0.00016722,2]
[365517708,1749736239750,-416.89908598,0.00016726,2]
[365517710,1749736239759,-206.16691252,0.00016755,2]
[365517712,1749736239768,-581.19248344,0.00016756,2]
[365517714,1749736239778,-192.60780138,0.00016767,2]
[365517716,1749736239787,-1085.93289452,0.00016767,2]
[365517718,1749736239799,-121.18710548,0.00016767,2]
[365517720,1749736239809,-1000.0,0.00016768,2]
[365517722,1749736239819,-1000.0,0.00016796,2]
[365517724,1749736239828,-27.04289452,0.00016798,2]
[365517726,1749736239840,-972.95710548,0.00016798,2]
[365517728,1749736239849,-93.24289452,0.00016829,2]
[365517730,1749736239861,-906.75710548,0.00016829,2]
[365517732,1749736239871,-214.74289452,0.00016832,2]
[365517735,1749736239882,-785.25710548,0.00016832,2]
[365517737,1749736239891,-313.18289452,0.00016861,2]
[365517746,1749736239961,-686.81710548,0.00016861,2]
[365517748,1749736239971,-500.0,0.00016864,2]
[365517750,1749736239981,-451.96957002,0.00016869,2]
[365517752,1749736239991,-1000.0,0.00016894,2]
[365517755,1749736240001,-150.17490222,0.00016894,2]
[365517756,1749736240012,-260.0,0.00016896,4]
[365517759,1749736240022,-150.1749022,0.00016897,2]
[365517760,1749736240032,-482.7231,0.000169,2]
[365517762,1749736240042,-500.0,0.000169,2]
[365517764,1749736240051,-4878.95629871,0.000169,2]
[365517836,1749736240638,-4683.66130129,0.000169,2]
[365517838,1749736240647,-21387.6957,0.000169,2]
[365517840,1749736240656,-587.9859,0.000169,2]
[365517841,1749736240666,-1460.22393684,0.000169,2]
[365517843,1749736240675,-161.77392948,0.000169,2]
[365517845,1749736240684,-150.1749022,0.000169,2]
[365517847,1749736240693,-150.0,0.00016907,2]
[365517849,1749736240702,-867.9924602,0.0001691,2]
[365517851,1749736240711,-1000.0,0.00016934,2]
[365517853,1749736240720,-593.36043636,0.00016973,2]
[365517855,1749736240729,-500.0,0.00016973,2]
[365517857,1749736240739,-500.0,0.00016973,2]
[365517859,1749736240748,-500.0,0.00016973,2]
[365517861,1749736240757,-298.33545894,0.00016973,2]
[365517886,1749736240993,-500.0,0.00016973,2]
[365517888,1749736241009,-500.0,0.00016973,2]
[365517890,1749736241018,-563.19258255,0.00016973,2]
[365517892,1749736241028,-500.0,0.00016973,2]
[365517894,1749736241038,-465.28410596,0.00016973,2]
[365517896,1749736241047,-500.0,0.00016973,2]
[365517898,1749736241056,-500.0,0.00016973,2]
[365517900,1749736241067,-1199.6072026,0.00016994,2]
[365517902,1749736241076,-152.7821621,0.00016998,2]
[365517903,1749736241085,-216.21728723,0.00016998,2]
[365517905,1749736241095,-1072.86784444,0.00016999,5]
[365517907,1749736241104,-191.58,0.00016999,2]
[365517909,1749736241113,-150.0,0.00016999,2]
[365517911,1749736241122,-300.0,0.00016999,2]
[365517913,1749736241131,-300.0,0.00016999,2]
[365517915,1749736241140,-500.0,0.00016999,2]
[365517917,1749736241149,-150.0,0.00016999,2]
[365517919,1749736241158,-500.0,0.00016999,2]
[365517921,1749736241168,-1519.0,0.00016999,2]
[365517923,1749736241177,-150.0,0.00016999,2]
[365517924,1749736241186,-500.0,0.00016999,2]
[365517925,1749736241195,-150.0,0.00016999,2]
[365517926,1749736241204,-150.0,0.00016999,2]
[365517927,1749736241213,-500.0,0.00016999,2]
[365517928,1749736241221,-500.0,0.00016999,2]
[365517929,1749736241230,-500.0,0.00016999,2]
[365517930,1749736241239,-500.0,0.00016999,2]
[365517931,1749736241248,-500.0,0.00016999,2]
[365517932,1749736241258,-150.0,0.00016999,2]
[365517933,1749736241267,-500.0,0.00016999,2]
[365517934,1749736241276,-226.37451205,0.00016999,2]
[365517935,1749736241284,-281.56550501,0.00016999,2]
[365517936,1749736241294,-500.0,0.00016999,2]
[365517937,1749736241302,-150.0,0.00016999,2]
[365517938,1749736241312,-6091.70441088,0.00017,3]
[365517939,1749736241321,-61374.73995884,0.00017,3]
[365517941,1749736241333,-1066.7,0.00017,3]
[365517945,1749736241359,-247399.32222925,0.00017,3]
[365517947,1749736241368,-1935639.61887133,0.00017,2]
[365517949,1749736241378,-500.36213642,0.00017,2]
[365517951,1749736241387,-1000.0,0.00017,2]
[365517953,1749736241396,-1000.0,0.00017,2]
[365517955,1749736241405,-1000.0,0.00017,2]
[365517957,1749736241415,-1000.0,0.00017,2]
[365517959,1749736241424,-1000.0,0.00017,2]
[365517961,1749736241433,-1000.0,0.00017,2]
[365517963,1749736241442,-1000.0,0.00017,2]
[365517965,1749736241451,-1000.0,0.00017,2]
[365517967,1749736241460,-1000.0,0.00017,2]
[365517968,1749736241469,-1000.0,0.00017,2]
[365517970,1749736241479,-1000.0,0.00017,2]
[365517972,1749736241488,-1000.0,0.00017,2]
[365517974,1749736241497,-1000.0,0.00017,2]
[365517976,1749736241507,-1000.0,0.00017,2]
[365517978,1749736241516,-1000.0,0.00017,2]
[365517980,1749736241526,-1000.0,0.00017,2]
[365517982,1749736241536,-1000.0,0.00017,2]
[365517984,1749736241545,-1000.0,0.00017,2]
[365517986,1749736241554,-1000.0,0.00017,2]
[365517988,1749736241564,-1000.0,0.00017,2]
[365517990,1749736241573,-1000.0,0.00017,2]
[365517992,1749736241584,-1000.0,0.00017,2]
[365517994,1749736241593,-1000.0,0.00017,2]
[365517996,1749736241602,-1000.0,0.00017,2]
[365517998,1749736241611,-1000.0,0.00017,2]
[365518000,1749736241620,-1000.0,0.00017,2]
[365518002,1749736241629,-1000.0,0.00017,2]
[365518004,1749736241638,-1000.0,0.00017,2]
[365518006,1749736241647,-1000.0,0.00017,2]
[365518008,1749736241656,-1000.0,0.00017,2]
[365518010,1749736241665,-1000.0,0.00017,2]
[365518012,1749736241674,-1000.0,0.00017,2]
[365518014,1749736241686,-1000.0,0.00017,2]
[365518016,1749736241695,-1000.0,0.00017,2]
[365518018,1749736241704,-629.72229772,0.00017,2]
[365518020,1749736241714,-109695.54184539,0.00017,2]
[365518022,1749736241723,-5000.0,0.00017,2]
[365518024,1749736241733,-151.0,0.00017,2]
[365518026,1749736241743,-227.633808,0.00017,2]
[365518028,1749736241752,-227.633808,0.00017,2]
[365518030,1749736241761,-254.316833,0.00017,2]
[365518032,1749736241771,-254.316833,0.00017,2]
[365518034,1749736241780,-254.316833,0.00017,2]
[365518036,1749736241790,-254.316833,0.00017,2]
[365518038,1749736241799,-1107933.99107665,0.00017,2]
[365518040,1749736241813,-10428.0,0.00017,2]
[365518042,1749736241824,-42668.00000001,0.00017,2]
[365518119,1749736242574,-4175.15282424,0.00017,2]
[365518152,1749736242869,212.0,0.00015081,2]
[365518238,1749736243777,-730.78302207,0.00017,2]
[365518239,1749736243789,-21963.85787363,0.00017,2]
[365518240,1749736243802,-2796.7152549,0.00017,2]
[365518241,1749736243818,-400.0,0.00017,2]
[365518242,1749736243845,-1556.52154702,0.00017,2]
[365518243,1749736243857,-550.53888,0.00017,2]
[365518255,1749736246114,-151.0,0.00016312,2]
[365518256,1749736246347,-2516.44398719,0.00017,2]
[365518257,1749736246420,-112041.36337611,0.00017,2]
[365518258,1749736246431,-54517.07276792,0.00017,2]
[365518259,1749736246507,-1709.2545049,0.00017,2]
[365518260,1749736246521,-106610.0,0.00017,2]
[365518262,1749736246579,-257.44674603,0.00017,2]
[365518263,1749736246590,-5077.91259543,0.00017,2]
[365518278,1749736272059,519.0,0.00015081,2]
[365518279,1749736314454,800.0,0.00015078,2]
[365518280,1749736381503,5199.59004749,0.00016001,2]
[365518281,1749736381524,10000.0,0.00016001,2]
[365518282,1749736381544,1115.86167355,0.00016001,2]
[365518286,1749736418628,8884.13832645,0.00016001,2]
[365518288,1749736420487,-262.12368052,0.00016001,2]
[365518289,1749736424231,-177.12607693,0.00016001,2]
[365518290,1749736427829,-151.0,0.00016001,2]
[365518292,1749736429588,-152.0,0.00016001,2]
[365518293,1749736432110,-231.85590464,0.00016001,2]
[365518294,1749736433741,-193.65132689,0.00016001,2]
[365518295,1749736435316,-417.95568379,0.00016001,2]
[365518296,1749736437346,-216.82149945,0.00016001,2]
[365518297,1749736438781,-222.86778764,0.00016001,2]
[365518298,1749736440250,-151.0,0.00016001,2]
[365518299,1749736444002,-190.62444018,0.00016001,2]
[365518300,1749736446488,-247.45224074,0.00016001,2]
[365518301,1749736448354,512.23148,7.945e-05,2]
[365518302,1749736449300,-269.17480685,0.00016001,2]
[365518303,1749736451535,179.63,0.00015921,2]
[365518304,1749736454167,-363.49041582,0.00016001,2]
[365518305,1749736455611,-160.37555982,0.00016001,2]
[365518306,1749736457213,-206.88157774,0.00016001,2]
[365518307,1749736459618,-196.07197519,0.00016001,2]
[365518308,1749736462265,-232.43301651,0.00016001,2]
[365518309,1749736465316,-301.47368583,0.00016001,2]
[365518310,1749736468025,-300.0,0.00016001,2]
[365518311,1749736471774,-299.34801664,0.00016001,2]
[365518312,1749736475345,-187.37967098,0.00016001,2]
[365518313,1749736476550,-210.76660936,0.00016001,2]
[365518314,1749736478366,-309.76339064,0.00016001,2]
[365518315,1749736481046,-377.76396443,0.00016001,2]
[365518316,1749736494788,-210.68290712,0.00016001,2]
[365518317,1749736510987,-193.9262892,0.00016001,2]
[365518318,1749736514008,-172.8,0.00016001,2]
[365518319,1749736515187,20265.79960046,0.00016,2]
[365518320,1749736525814,-241.51056906,0.00016001,2]
[365518321,1749736541961,-379.76551022,0.00016001,2]
[365518322,1749736543625,-288.37076245,0.00016001,2]
[365518323,1749736546924,-208.62809662,0.00016001,2]
[365518324,1749736549183,-308.18793147,0.00016001,2]
[365518325,1749736550228,-220.04675857,0.00016001,2]
[365518326,1749736550873,-960.47833768,0.00016001,2]
[365518327,1749736592249,3006.49,0.00014049,2]
[365518329,1749736629649,1000.0,0.00013699,2]
[365518331,1749736651658,263.94293665,0.00015935,2]
[365518332,1749736735180,171.52,0.00015721,2]
[365518333,1749736812549,150.0,0.0002,29]
[365518334,1749736817876,268.0,0.0001535,2]
[365518335,1749736818623,268.0,0.00015801,2]
[365518336,1749736833093,150.0,0.00015663,7]
[365518337,1749736844060,163.62835706,0.00023425,120]
[365518338,1749736844665,150.0,0.0002465,120]
[365518339,1749736850378,257.30542,0.0001535,2]
[365518340,1749736882871,1000.0,0.00015642,2]
[365518341,1749736908168,436.6989096,0.00024658,120]
[365518342,1749736913147,42880.53297816,0.0002,30]
[365518344,1749736987994,1116.64,0.00015584,2]
[365518345,1749737004075,499.99,0.00024658,120]
[365518346,1749737006949,5000.0,0.00017,12]
[365518347,1749737014111,5000.0,0.00017,13]
[365518348,1749737021928,5000.0,0.00017,21]
[365518349,1749737027345,1470.0,0.00024658,120]
[365518350,1749737072538,1055.54,0.00024658,120]
[365518351,1749737074896,1537.62330567,0.00015629,2]
[365518352,1749737074922,1299.54669433,0.00015629,2]
[365518355,1749737156652,168.0,0.00015844,2]
[365518356,1749737171475,162.371147,0.00015934,2]
[365518357,1749737172153,264.0,0.00015252,2]
[365518358,1749737172439,264.0,0.00015704,2]
[365518359,1749737186371,515.23,0.00015621,2]
[365518362,1749737218796,200.0,0.0001562,2]
[365518363,1749737223885,196.19,0.0001562,2]
[365518364,1749737224079,196.19,0.00015659,2]
[365518365,1749737224342,196.19,0.00015698,2]
[365518366,1749737235250,150.0,0.0002465,120]
[365518367,1749737256138,23900.0,0.00015598,2]
[365518368,1749737291025,184.74,0.00012466,2]
[365518369,1749737291232,184.74,0.00014543,2]
[365518371,1749737333840,666.0,0.00015584,2]
[365518372,1749737344611,190.0,0.00017,10]
[365518373,1749737356731,250.0,0.00015592,2]
[365518377,1749737431370,-352.11385569,0.00016034,2]
[365518378,1749737431380,-250.0,0.00016034,2]
[365518379,1749737431390,-600.0,0.00016034,4]
[365518380,1749737431401,-164.44591854,0.00016034,2]
[365518381,1749737431410,-193.43685826,0.00016037,2]
[365518382,1749737431421,-168.0,0.00016143,2]
[365518383,1749737431430,-82.42384469,0.00016156,3]
[365518384,1749737431442,-181.57615531,0.00016156,3]
[365518385,1749737431451,-305.92384469,0.00016164,2]
[365518387,1749737431652,-1282.33922951,0.00016164,2]
[365518389,1749737431664,-369.5929258,0.00016164,2]
[365518391,1749737431673,-207.4,0.00016164,2]
[365518393,1749737431683,-1200.0,0.00016173,2]
[365518394,1749737431692,-550.8414476,0.00016174,2]
[365518395,1749737431702,-700.0,0.00016174,2]
[365518397,1749737431711,-168.0,0.00016186,2]
[365518399,1749737431720,-300.0,0.00016199,2]
[365518401,1749737431730,-600.0,0.000162,5]
[365518403,1749737431740,-2030.296672,0.00016219,2]
[365518404,1749737431749,-151.0,0.00016222,2]
[365518405,1749737431760,-151.0,0.00016223,2]
[365518406,1749737431769,-151.0,0.00016224,2]
[365518407,1749737431779,-151.0,0.00016225,2]
[365518408,1749737431788,-3269.28126325,0.00016257,2]
[365518409,1749737431798,-200.0,0.00016268,2]
[365518410,1749737431807,-228.12625637,0.00016273,2]
[365518411,1749737431817,-500.0,0.00016273,2]
[365518412,1749737431827,-500.0,0.00016273,2]
[365518413,1749737431836,-500.0,0.00016273,2]
[365518414,1749737431846,-613.785,0.00016273,2]
[365518415,1749737431855,-1148.67643486,0.00016274,2]
[365518428,1749737431991,-30.75547807,0.00016274,2]
[365518430,1749737432000,-300.0,0.00016298,2]
[365518432,1749737432010,-1300.0,0.000163,5]
[365518434,1749737432019,-3006.49,0.00016313,2]
[365518436,1749737432029,-1900.0,0.000164,5]
[365518438,1749737432038,-500.0,0.00016438,2]
[365518440,1749737432048,-500.0,0.00016438,2]
[365518442,1749737432057,-299.99176529,0.00016438,2]
[365518443,1749737432066,-800.0,0.00016448,2]
[365518444,1749737432076,-168.0,0.00016472,2]
[365518445,1749737432085,-2600.0,0.000165,6]
[365518446,1749737432094,-422.07460358,0.00016525,2]
[365518447,1749737432104,-171.52,0.00016594,2]
[365518448,1749737432113,-3200.0,0.000166,6]
[365518449,1749737432122,-514.10150559,0.00016604,2]
[365518450,1749737432132,-264.0,0.00016608,3]
[365518451,1749737432142,-184.74,0.00016621,2]
[365518452,1749737432151,-168.0,0.00016673,2]
[365518453,1749737432161,-600.0,0.000167,6]
[365518454,1749737432171,-849.90928394,0.00016733,2]
[365518455,1749737432181,-965.696,0.0001678,2]
[365518456,1749737432190,-600.0,0.000168,6]
[365518457,1749737432199,-2000.0,0.00016863,2]
[365518458,1749737432209,-2000.0,0.00016863,2]
[365518459,1749737432218,-2000.0,0.00016863,2]
[365518460,1749737432228,-2000.0,0.00016864,2]
[365518461,1749737432238,-2000.0,0.00016864,2]
[365518462,1749737432247,-2000.0,0.00016864,2]
[365518463,1749737432258,-2000.0,0.00016864,2]
[365518464,1749737432268,-2000.0,0.00016864,2]
[365518465,1749737432277,-2000.0,0.00016864,2]
[365518466,1749737432286,-2000.0,0.00016864,2]
[365518467,1749737432296,-1163.98,0.00016868,2]
[365518468,1749737432309,-1163.98,0.00016868,2]
[365518469,1749737432320,-151.0,0.0001689,2]
[365518470,1749737432330,-566.93583043,0.0001689,2]
[365518471,1749737432339,-500.0,0.0001689,2]
[365518472,1749737432349,-637.06416957,0.0001689,2]
[365518473,1749737432359,-500.0,0.0001689,2]
[365518474,1749737432368,-5195.86,0.000169,2]
[365518475,1749737432378,-2500.0,0.000169,2]
[365518476,1749737432388,-600.0,0.000169,6]
[365518477,1749737432397,-596.5980907,0.000169,2]
[365518478,1749737432407,-7523.02029568,0.000169,2]
[365518479,1749737432416,-12335.03059734,0.000169,2]
[365518480,1749737432426,-500.0,0.00016973,2]
[365518481,1749737432436,-500.0,0.00016973,2]
[365518482,1749737432445,-500.0,0.00016973,2]
[365518483,1749737432455,-500.0,0.00016973,2]
[365518484,1749737432465,-341.23698223,0.00016973,2]
[365518485,1749737432738,-500.0,0.00016973,2]
[365518486,1749737432752,-500.0,0.00016973,2]
[365518487,1749737432762,-500.0,0.00016973,2]
[365518488,1749737432772,-4062.70511754,0.0001699,4]
[365518489,1749737432782,-150.21,0.0001699,2]
[365518490,1749737432791,-4783.2879174,0.00016995,2]
[365518491,1749737432800,-3858.3519289,0.00016995,2]
[365518492,1749737432809,-10719.43552519,0.00016996,2]
[365518493,1749737432822,-670.543108,0.00016996,2]
[365518494,1749737432833,-1095.0,0.00016996,2]
[365518495,1749737432897,-419.63577014,0.00016996,2]
[365518496,1749737433970,1000.0,0.00024,120]
[365518497,1749737435308,1000.0,0.00024,120]
[365518498,1749737437004,1000.0,0.00024,120]
[365518534,1749737437641,-200.0,0.000165,2]
[365518535,1749737437651,-850.28601678,0.00016786,2]
[365518536,1749737437661,-196.35210106,0.00016899,2]
[365518537,1749737437671,-10230.58437493,0.00016996,2]
[365518538,1749737437807,-2587.59394141,0.00016996,2]
[365518539,1749737437820,-16431.33925863,0.00016996,2]